bitfinex/quotes_BTCUSD_20251010
["timestamp","ask_amount","ask_price","bid_price","bid_amount"]
[1760136523029,0.08750055,114090.0,114050.0,2.08803908]
[1760136523239,0.08750055,114100.0,114060.0,0.43466]
[1760136523444,0.08750055,114100.0,114070.0,0.09266]
[1760136523963,0.08750055,114100.0,114060.0,0.001]
[1760136524163,0.08750055,114100.0,114060.0,0.09366]
[1760136524384,0.08750055,114100.0,114060.0,0.09266]
[1760136524589,0.01899722,114130.0,114070.0,0.52016055]
[1760136524807,0.08750055,114130.0,114070.0,0.42750055]
[1760136525034,0.0902,114160.0,114080.0,0.09266]
[1760136525225,0.08750055,114150.0,114090.0,0.42750055]
[1760136525353,0.08750055,114150.0,114100.0,0.43266]
[1760136525559,0.08750055,114150.0,114100.0,0.52016055]
[1760136525769,0.04588,114200.0,114140.0,0.02696]
[1760136525969,0.08750055,114180.0,114140.0,0.11962]
[1760136526234,0.08750055,114180.0,114140.0,0.02696]
[1760136526435,0.08750055,114180.0,114140.0,0.02746734]
[1760136526652,0.08750055,114180.0,114140.0,0.20762789]
[1760136526797,0.08750055,114170.0,114140.0,0.12012734]
[1760136527001,0.08750055,114170.0,114140.0,0.00050734]
[1760136527198,0.08750055,114170.0,114140.0,0.00250734]
[1760136527404,0.01703798,114200.0,114150.0,0.18016055]
[1760136527622,0.13536,114250.0,114170.0,0.34]
[1760136527824,0.08750055,114200.0,114180.0,0.02304]
[1760136528262,0.08750055,114200.0,114160.0,0.02304]
[1760136528756,0.08750055,114200.0,114140.0,0.0967]
[1760136528757,0.08750055,114200.0,114140.0,0.0987]
[1760136528957,0.08750055,114190.0,114140.0,0.43820734]
[1760136529161,0.08750055,114190.0,114140.0,0.09820734]
[1760136529363,0.08750055,114190.0,114150.0,0.18320055]
[1760136529620,0.08843,114220.0,114160.0,0.0967]
[1760136529732,0.08750055,114210.0,114160.0,0.0977]
[1760136529938,0.08750055,114210.0,114160.0,0.0967]
[1760136530139,0.08750055,114190.0,114160.0,0.001]
[1760136530335,0.08750055,114190.0,114140.0,0.09820734]
[1760136530540,0.08750055,114190.0,114150.0,0.0957]
[1760136530789,0.08750055,114190.0,114160.0,0.0957]
[1760136531002,0.08750055,114190.0,114160.0,0.4357]
[1760136531213,0.08750055,114190.0,114160.0,0.0957]
[1760136531412,0.08843,114220.0,114160.0,0.18320055]
[1760136531710,0.0227943,114200.0,114160.0,0.0957]
[1760136531925,0.11029485,114200.0,114160.0,0.002]
[1760136532131,0.08750055,114190.0,114160.0,0.002]
[1760136532742,0.08750055,114190.0,114170.0,0.11874]
[1760136532948,0.08750055,114190.0,114170.0,0.02304]
[1760136533147,0.08750055,114190.0,114160.0,0.002]
[1760136533369,0.08750055,114190.0,114170.0,0.0957]
[1760136533508,0.06709103,114230.0,114170.0,0.0957]
[1760136533509,0.04695,114230.0,114170.0,0.11874]
[1760136533697,0.08750055,114210.0,114170.0,0.11874]
[1760136533905,0.08750055,114200.0,114170.0,0.11874]
[1760136534169,0.08750055,114200.0,114170.0,0.12074]
[1760136534557,0.08750055,114200.0,114170.0,0.02504]
[1760136534804,0.08750055,114190.0,114170.0,0.002]
[1760136535001,0.17593055,114190.0,114170.0,0.002]
[1760136535279,0.08750055,114190.0,114170.0,0.002]
[1760136535451,0.08750055,114190.0,114170.0,0.11874]
[1760136535659,0.08750055,114190.0,114180.0,0.0957]
[1760136535836,0.09433337,114240.0,114180.0,0.18320055]
[1760136536037,0.08750055,114220.0,114180.0,0.0957]
[1760136536377,0.11782686,114210.0,114170.0,0.02504]
[1760136536577,0.08750055,114200.0,114170.0,0.004]
[1760136536742,0.08750055,114190.0,114170.0,0.00250734]
[1760136537184,0.09626,114220.0,114170.0,0.00250734]
[1760136537185,0.09626,114220.0,114170.0,0.09820734]
[1760136537385,0.08750055,114210.0,114170.0,0.09820734]
[1760136537625,0.08750055,114210.0,114170.0,0.00250734]
[1760136537826,0.20522591,114210.0,114170.0,0.00250734]
[1760136537964,0.20522591,114200.0,114170.0,0.00050734]
[1760136538180,0.20522591,114200.0,114180.0,0.001]
[1760136538367,0.18376055,114200.0,114180.0,0.001]
[1760136538822,0.18376055,114200.0,114170.0,0.00050734]
[1760136539155,0.18376055,114200.0,114170.0,0.00450734]
[1760136539274,0.08750055,114200.0,114170.0,0.00450734]
[1760136539484,0.09626,114190.0,114170.0,0.00050734]
[1760136539831,0.08750055,114190.0,114180.0,0.002]
[1760136540584,0.09626,114210.0,114180.0,0.002]
[1760136540784,0.08750055,114210.0,114170.0,0.0069046]
[1760136541010,0.08750055,114210.0,114180.0,0.094295]
[1760136541179,0.08750055,114210.0,114170.0,0.09440515]
[1760136541381,0.08750055,114210.0,114170.0,0.09540515]
[1760136541579,0.08250055,114210.0,114170.0,0.0059046]
[1760136541946,0.1183757,114200.0,114170.0,0.0059046]
[1760136542117,0.08750055,114190.0,114170.0,0.0049046]
[1760136542323,0.20158625,114190.0,114180.0,0.002]
[1760136542535,0.22248572,114190.0,114170.0,0.0059046]
[1760136542734,0.1122028,114180.0,114170.0,0.00150405]
[1760136543058,0.04695,114230.0,114170.0,0.00150405]
[1760136543059,0.13892,114230.0,114170.0,0.09427405]
[1760136543296,0.08750055,114200.0,114170.0,0.00250405]
[1760136543476,0.08750055,114200.0,114170.0,0.00150405]
[1760136543636,0.08750055,114180.0,114170.0,0.00150405]
[1760136543837,0.22297301,114180.0,114170.0,0.00150405]
[1760136544060,0.08750055,114180.0,114170.0,0.00150405]
[1760136544265,0.0714768,114230.0,114170.0,0.00150405]
[1760136544493,0.17947055,114220.0,114170.0,0.00250405]
[1760136544691,0.20132293,114220.0,114170.0,0.00250405]
[1760136544921,0.08750055,114200.0,114170.0,0.00350405]
[1760136545133,0.10935293,114200.0,114170.0,0.00150405]
[1760136545324,0.08750055,114180.0,114170.0,0.00250405]
[1760136545539,0.17947055,114180.0,114170.0,0.00250405]
[1760136545787,0.21849797,114180.0,114170.0,0.00150405]
[1760136546136,0.20132293,114180.0,114100.0,0.02504]
[1760136546334,0.20132293,114180.0,114100.0,0.00050781]
[1760136546335,0.08750055,114160.0,114100.0,0.00050781]
[1760136546536,0.02187738,114150.0,114100.0,0.00050781]
[1760136546860,0.10467559,114140.0,114100.0,0.00050781]
[1760136547018,0.10467559,114140.0,114050.0,1.99487174]
[1760136547019,0.04773,114110.0,114050.0,1.99487174]
[1760136547360,0.11441003,114100.0,114060.0,0.08750055]
[1760136547560,0.08750055,114090.0,114070.0,0.11973]
[1760136547769,0.04773,114170.0,114080.0,0.34]
[1760136548106,0.03901823,114090.0,114080.0,0.74]
[1760136548279,0.03827825,114090.0,114080.0,0.74]
[1760136548913,0.03827825,114090.0,114070.0,0.02696]
[1760136549053,0.03827825,114090.0,114080.0,0.001]
[1760136549263,0.03827825,114090.0,114080.0,0.78813384]
[1760136549478,0.03827825,114090.0,114080.0,0.78313384]
[1760136549702,0.03827825,114090.0,114080.0,0.74]
[1760136549903,0.03827825,114090.0,114080.0,0.008]
[1760136550119,0.09197,114170.0,114080.0,0.09550055]
[1760136550325,0.02545958,114140.0,114090.0,0.08750055]
[1760136550492,0.01419489,114130.0,114090.0,0.08750055]
[1760136550691,0.01419489,114130.0,114080.0,0.008]
[1760136550692,0.1397,114120.0,114080.0,0.008]
[1760136550897,0.06156586,114120.0,114110.0,0.07572267]
[1760136551101,0.07501118,114120.0,114110.0,0.01178055]
[1760136551301,0.04773,114120.0,114080.0,0.004]
[1760136551524,0.09197,114110.0,114100.0,0.00799641]
[1760136551930,0.09197,114110.0,114080.0,0.00050861]
[1760136552102,0.09197,114100.0,114080.0,0.00050861]
[1760136552302,0.09197,114100.0,114090.0,0.00799216]
[1760136552512,0.1397,114120.0,114090.0,0.00799216]
[1760136552725,0.09197,114110.0,114080.0,0.00050861]
[1760136552958,0.08750055,114100.0,114080.0,0.00150861]
[1760136553152,0.17947055,114100.0,114080.0,0.00150861]
[1760136553378,0.17947055,114090.0,114050.0,1.99487174]
[1760136553579,0.04773,114060.0,114050.0,1.99538099]
[1760136553781,0.22720055,114060.0,114050.0,1.99538099]
[1760136553984,0.1579936,114060.0,114050.0,1.9128413]
[1760136554237,0.19033454,114060.0,114050.0,1.9128413]
[1760136554446,0.20622464,114060.0,114050.0,1.85797214]
[1760136554624,0.29372519,114060.0,114050.0,1.85797214]
[1760136554829,0.29372519,114060.0,114050.0,1.83255346]
[1760136555074,0.22720055,114060.0,114050.0,1.80971349]
[1760136555325,0.22820055,114060.0,114050.0,1.80971349]
[1760136555664,0.08850055,114060.0,114050.0,1.80971349]
[1760136555860,0.08750055,114060.0,114050.0,1.85554514]
[1760136556056,0.08850055,114060.0,114050.0,1.69563977]
[1760136556545,0.18047055,114060.0,114050.0,1.60400509]
[1760136557283,0.08850055,114060.0,114050.0,1.51440738]
[1760136557479,0.08750055,114060.0,114050.0,1.94717738]
[1760136557919,0.08750055,114060.0,114050.0,1.94817738]
[1760136558128,0.08750055,114060.0,114050.0,1.51540738]
[1760136558522,0.1397,114080.0,114050.0,1.51540738]
[1760136558844,0.22720055,114070.0,114050.0,1.51640738]
[1760136559022,0.17947055,114060.0,114050.0,1.51292111]
[1760136559189,0.22637452,114060.0,114050.0,1.50892111]
[1760136559390,0.13174283,114060.0,114050.0,1.50992111]
[1760136559682,0.13174283,114060.0,114050.0,1.51092111]
[1760136559855,0.11148208,114060.0,114050.0,1.59742166]
[1760136560076,0.12940449,114060.0,114050.0,1.50992111]
[1760136560249,0.24199355,114060.0,114050.0,1.50492832]
[1760136560454,0.24199355,114060.0,114050.0,1.42999694]
[1760136560717,0.21300064,114060.0,114050.0,1.40503811]
[1760136560932,0.21400064,114060.0,114050.0,1.31474107]
[1760136561162,0.17641357,114060.0,114050.0,1.28072395]
[1760136561382,0.19394042,114060.0,114050.0,1.26583695]
[1760136561600,0.21480371,114060.0,114050.0,1.13492233]
[1760136561785,0.12930316,114060.0,114050.0,0.9397256]
[1760136562044,0.08991302,114060.0,114050.0,0.9397256]
[1760136562275,0.12943028,114060.0,114050.0,0.9397256]
[1760136562501,0.13043028,114060.0,114050.0,0.9397256]
[1760136562721,0.08891302,114060.0,114050.0,0.9397256]
[1760136562971,0.11109745,114060.0,114050.0,0.9397256]
[1760136563190,0.13063781,114060.0,114050.0,0.9397256]
[1760136563864,0.12963781,114060.0,114050.0,0.9397256]
[1760136564083,0.11009745,114060.0,114050.0,0.9397256]
[1760136564215,0.08891302,114060.0,114050.0,0.9397256]
[1760136564809,0.20032974,114060.0,114050.0,0.9397256]
[1760136565005,0.19932974,114060.0,114050.0,0.9397256]
[1760136565158,0.19911074,114060.0,114050.0,0.9397256]
[1760136565358,0.21937025,114060.0,114050.0,0.9397256]
[1760136565765,0.19467308,114060.0,114050.0,0.9397256]
[1760136565997,0.12963554,114060.0,114050.0,0.74134776]
[1760136566231,0.17332992,114060.0,114050.0,0.56566473]
[1760136566506,0.17332992,114060.0,114050.0,0.50566492]
[1760136566921,0.17332992,114060.0,114050.0,0.07457531]
[1760136567082,0.08750055,113990.0,113930.0,0.0004]
[1760136567284,0.04773,113940.0,113930.0,0.00091078]
[1760136567508,0.56062055,113940.0,113930.0,0.00091078]
[1760136567895,0.22062055,113940.0,113930.0,0.00091078]
[1760136568096,0.56062055,113940.0,113930.0,0.00091078]
[1760136568283,0.24823563,113940.0,113870.0,0.08706896]
[1760136568492,0.24823563,113940.0,113880.0,0.08750055]
[1760136568493,0.08750055,113930.0,113880.0,0.08750055]
[1760136568912,0.42750055,113910.0,113870.0,0.00051143]
[1760136569341,0.1392,113900.0,113870.0,0.00051143]
[1760136569562,0.09103,113930.0,113880.0,0.08750055]
[1760136569757,0.08750055,113920.0,113880.0,0.08750055]
[1760136569918,0.08750055,113930.0,113890.0,0.08750055]
[1760136570100,0.08750055,113930.0,113890.0,0.11966055]
[1760136570303,0.17853055,113920.0,113870.0,0.00151143]
[1760136570500,0.09103,113910.0,113870.0,0.08901198]
[1760136570751,0.04773,113940.0,113880.0,0.18027055]
[1760136570952,0.08750055,113930.0,113880.0,0.08750055]
[1760136571196,0.04773,113890.0,113870.0,0.00051143]
[1760136571593,0.02884749,113910.0,113870.0,0.00151143]
[1760136571773,0.17947055,113900.0,113870.0,0.00051143]
[1760136571981,0.17947055,113900.0,113880.0,0.001]
[1760136572185,0.09139,113890.0,113880.0,0.001]
[1760136572381,0.11634804,113890.0,113880.0,0.001]
[1760136572583,0.04723,113910.0,113880.0,0.00044003]
[1760136572925,0.02884749,113900.0,113880.0,0.00044003]
[1760136573123,0.03001112,113900.0,113880.0,0.00044003]
[1760136573435,0.04307827,114040.0,113880.0,0.00044003]
[1760136573436,0.08886,113980.0,113920.0,0.00877808]
[1760136573581,0.08845,113980.0,113920.0,0.00877808]
[1760136573785,0.02203646,113970.0,113920.0,0.00877808]
[1760136573982,0.1366,113960.0,113920.0,0.00877808]
[1760136574193,0.11009646,113950.0,113890.0,0.1495604]
[1760136574419,0.04854,113960.0,113920.0,0.00877808]
[1760136574614,0.1366,113960.0,113920.0,0.00051143]
[1760136574821,0.08806,113950.0,113920.0,0.00051143]
[1760136575113,0.1366,113960.0,113930.0,0.09627786]
[1760136575261,0.15467912,113990.0,113960.0,0.008775]
[1760136575464,0.08750055,113970.0,113920.0,0.00977808]
[1760136575852,0.11677854,113960.0,113920.0,0.001]
[1760136576022,0.04882,113940.0,113920.0,0.08850055]
[1760136576241,0.13505232,113930.0,113920.0,0.001]
[1760136576478,0.13505232,113930.0,113920.0,0.00051143]
[1760136576479,0.15497441,113930.0,113920.0,0.00051143]
[1760136576677,0.15755774,113930.0,113920.0,0.00251143]
[1760136576879,0.14593523,113930.0,113920.0,0.09201198]
[1760136577192,0.1459844,113930.0,113920.0,0.09001198]
[1760136577444,0.1459844,113930.0,113920.0,0.05850528]
[1760136577665,0.09960888,113930.0,113920.0,0.08950055]
[1760136577837,0.09960888,113930.0,113920.0,0.002]
[1760136577838,0.14178163,113930.0,113920.0,0.002]
[1760136578039,0.11695012,113930.0,113860.0,0.0351196]
[1760136578241,0.15926928,113920.0,113870.0,0.08750055]
[1760136578450,0.06873661,113910.0,113870.0,0.08750055]
[1760136578663,0.17629522,113910.0,113860.0,0.0005124]
[1760136578867,0.11546267,113900.0,113860.0,0.08508356]
[1760136579018,0.02161694,113890.0,113860.0,0.0005124]
[1760136579396,0.11529214,113890.0,113860.0,0.0005124]
[1760136579547,0.11529214,113890.0,113870.0,0.001]
[1760136579899,0.08750055,113890.0,113860.0,0.0005124]
[1760136580119,0.02179835,113880.0,113860.0,0.03564263]
[1760136580295,0.08750055,113870.0,113860.0,0.0015124]
[1760136580856,0.04724,113870.0,113860.0,0.0015124]
[1760136581057,0.08540729,113870.0,113860.0,0.0015124]
[1760136581304,0.04724,113870.0,113860.0,0.0015124]
[1760136581506,0.13474055,113870.0,113860.0,0.0025124]
[1760136581740,0.08750055,113870.0,113860.0,0.0015124]
[1760136581861,0.08750055,113870.0,113860.0,0.03664326]
[1760136582207,0.08750055,113890.0,113880.0,0.03512469]
[1760136582655,0.08938033,113920.0,113880.0,0.03512469]
[1760136582656,0.04998043,113920.0,113880.0,0.03512469]
[1760136582866,0.08750055,113910.0,113900.0,0.03511852]
[1760136583415,0.04872,113910.0,113880.0,0.03512441]
[1760136583586,0.08750055,113910.0,113900.0,0.03511852]
[1760136583817,0.04882,113940.0,113920.0,0.03511232]
[1760136583983,0.02505,113960.0,113940.0,0.03510599]
[1760136584193,0.01710634,113970.0,113930.0,0.03510927]
[1760136584395,0.01929566,113950.0,113940.0,0.03510619]
[1760136584555,0.08750055,113970.0,113960.0,0.03510003]
[1760136584755,0.02505,113980.0,113960.0,0.03509896]
[1760136585087,0.08750055,113970.0,113960.0,0.03510003]
[1760136585287,0.04882,113990.0,113940.0,0.04388273]
[1760136585288,0.04882,113990.0,113940.0,0.03510619]
[1760136585518,0.04879,114020.0,113980.0,0.03509373]
[1760136585718,0.08750055,114010.0,113980.0,0.03560613]
[1760136585918,0.08750055,114010.0,113980.0,0.0005124]
[1760136586122,0.01808045,114000.0,113980.0,0.0005124]
[1760136586345,0.13302055,114010.0,113950.0,0.09735]
[1760136586562,0.08750055,114000.0,113960.0,0.08750055]
[1760136586771,0.08750055,114000.0,113960.0,0.20239902]
[1760136587069,0.13302055,114000.0,113980.0,0.001]
[1760136587265,0.15300989,114000.0,113960.0,0.08750055]
[1760136587468,0.10809905,114000.0,113960.0,0.08750055]
[1760136587632,0.15361905,114000.0,113960.0,0.10505043]
[1760136587833,0.0205985,113990.0,113960.0,0.002]
[1760136588034,0.13182174,113990.0,113960.0,0.002]
[1760136588232,0.04879,114020.0,113960.0,0.08950055]
[1760136588233,0.069296,114020.0,113960.0,0.08950055]
[1760136588434,0.045586,114010.0,113970.0,0.10504887]
[1760136588769,0.02508,114010.0,113970.0,0.19853887]
[1760136588955,0.04879,114020.0,113970.0,0.19853887]
[1760136589160,0.09221566,114020.0,113970.0,0.18099055]
[1760136589484,0.19920472,114040.0,113990.0,0.10504551]
[1760136589699,0.20920472,114060.0,114010.0,0.04679]
[1760136589840,0.08750055,114050.0,114000.0,0.18099055]
[1760136590097,0.08750055,114050.0,114010.0,0.18099055]
[1760136590478,0.01,114060.0,114030.0,0.08750055]
[1760136590679,0.09750055,114060.0,114030.0,0.09400337]
[1760136590903,0.08750055,114050.0,114030.0,0.00051337]
[1760136591110,0.1334833,114050.0,114030.0,0.00051337]
[1760136591284,0.04598275,114050.0,114030.0,0.00051337]
[1760136591430,0.01,114060.0,114030.0,0.00051337]
[1760136591431,0.02355676,114060.0,114030.0,0.08801392]
[1760136591632,0.02072588,114090.0,114050.0,0.08750055]
[1760136591839,0.0387186,114120.0,114060.0,0.18099055]
[1760136591840,0.02508,114120.0,114060.0,0.18099055]
[1760136592143,0.0002,114180.0,114070.0,0.08750055]
[1760136592144,0.10762659,114110.0,114070.0,0.08750055]
[1760136592341,0.10762659,114110.0,114050.0,0.14028]
[1760136592342,0.08750055,114110.0,114050.0,0.14028]
[1760136592644,0.08750055,114110.0,114060.0,0.18099055]
[1760136592844,0.01870193,114110.0,114070.0,0.09349]
[1760136593075,0.02160314,114100.0,114080.0,0.18099055]
[1760136593278,0.03076,114160.0,114090.0,0.08750055]
[1760136593279,0.02061877,114140.0,114090.0,0.08750055]
[1760136593479,0.03076,114160.0,114100.0,0.19851881]
[1760136593679,0.03076,114160.0,114130.0,0.01752224]
[1760136593680,0.08750055,114160.0,114130.0,0.01752224]
[1760136593884,0.08750055,114160.0,114140.0,0.01747943]
[1760136594089,5.5e-07,114160.0,114150.0,0.1110108]
[1760136594297,0.0002,114180.0,114150.0,0.1110108]
[1760136594453,0.00905006,114170.0,114160.0,0.09349]
[1760136594667,0.0002,114180.0,114150.0,0.0175208]
[1760136594900,0.0002,114180.0,114150.0,0.10553472]
[1760136595140,0.0238657,114170.0,114150.0,0.01803417]
[1760136595319,0.0002,114180.0,114160.0,0.08750055]
[1760136595497,0.0002,114180.0,114170.0,0.08750055]
[1760136595498,0.02435987,114180.0,114170.0,0.08750055]
[1760136595676,0.01862037,114210.0,114170.0,0.08750055]
[1760136595875,0.01862037,114210.0,114200.0,0.08750055]
[1760136595876,0.11326544,114210.0,114200.0,0.08750055]
[1760136596190,0.14461536,114210.0,114150.0,0.003]
[1760136596401,0.14461536,114210.0,114170.0,0.08750055]
[1760136596402,0.04462287,114200.0,114170.0,0.08750055]
[1760136596599,0.02214654,114200.0,114180.0,0.08750055]
[1760136596781,0.11249654,114200.0,114190.0,0.08750055]
[1760136596987,0.11249654,114200.0,114190.0,0.08801392]
[1760136597293,0.1330237,114200.0,114190.0,0.00051337]
[1760136597493,0.02015275,114190.0,114090.0,0.04679]
[1760136597728,0.25067129,114180.0,114110.0,0.08750055]
[1760136597889,0.11143937,114170.0,114120.0,0.08750055]
[1760136598093,0.11340074,114160.0,114090.0,0.00051435]
[1760136598292,0.12591393,114150.0,114100.0,0.08750055]
[1760136598481,0.16317074,114140.0,114100.0,0.07281687]
[1760136598688,0.13358007,114130.0,114100.0,0.07281687]
[1760136598889,0.07282074,114140.0,114100.0,0.08750055]
[1760136598890,0.1131649,114120.0,114100.0,0.08750055]
[1760136599123,0.14012,114110.0,114090.0,0.00051435]
[1760136599326,0.02275157,114100.0,114090.0,0.00051435]
[1760136599524,0.11200005,114100.0,114090.0,0.00051435]
[1760136599724,0.1995006,114100.0,114090.0,0.00051435]
[1760136599944,0.2409139,114100.0,114090.0,0.00051435]
[1760136600253,0.2190376,114100.0,114090.0,0.00051435]
[1760136600456,0.23779294,114100.0,114010.0,0.09349]
[1760136600662,0.04387122,114090.0,114030.0,0.08750055]
[1760136601027,0.079034,114080.0,114030.0,0.08750055]
[1760136601210,0.079034,114080.0,113950.0,0.04300493]
[1760136601211,0.03488429,114050.0,113950.0,0.09349]
[1760136601483,0.04434189,114080.0,114000.0,0.08750055]
[1760136601684,0.03546091,114080.0,114030.0,0.08750055]
[1760136601883,0.04366548,114070.0,114000.0,0.09349]
[1760136602094,0.06344777,114070.0,114010.0,0.08750055]
[1760136602302,0.02175365,114060.0,114010.0,0.08750055]
[1760136602481,0.02175365,114060.0,113980.0,0.09349]
[1760136602482,0.04443434,114050.0,113980.0,0.09349]
[1760136602795,0.0005066,114070.0,114000.0,0.08750055]
[1760136602988,0.04452317,114060.0,114000.0,0.17848055]
[1760136603484,0.04471542,114040.0,113980.0,0.01370313]
[1760136603706,0.04097,114030.0,113980.0,0.10120368]
[1760136603991,0.04548461,114020.0,113980.0,0.01370313]
[1760136604191,0.07194321,114020.0,113980.0,0.10120368]
[1760136604388,0.05937673,114030.0,113990.0,0.08750055]
[1760136604546,0.05937673,114030.0,113980.0,0.01370313]
[1760136604547,0.06162471,114080.0,114000.0,0.17848055]
[1760136604884,0.08580753,114080.0,114020.0,0.08750055]
[1760136605318,0.0005066,114080.0,114050.0,0.08750055]
[1760136605490,0.0005066,114080.0,114020.0,0.04999]
[1760136605689,0.06580185,114070.0,113990.0,0.013701]
[1760136605891,0.08619449,114070.0,113990.0,0.013701]
[1760136606090,0.04322,114070.0,114000.0,0.09098]
[1760136606293,0.0005066,114080.0,114000.0,0.09098]
[1760136606493,0.0005066,114080.0,114030.0,0.4]
[1760136606693,0.0005066,114080.0,114070.0,0.04999]
[1760136606896,0.02430815,114130.0,114070.0,0.04999]
[1760136607096,0.02430815,114130.0,114100.0,0.08750055]
[1760136607097,0.02078681,114130.0,114100.0,0.08750055]
[1760136607307,0.13980718,114120.0,114110.0,0.08750055]
[1760136607469,0.13980718,114120.0,114040.0,0.09098]
[1760136607470,0.16140885,114120.0,114040.0,0.09098]
[1760136607669,0.08750055,114110.0,114050.0,0.08750055]
[1760136607897,0.11033406,114110.0,114050.0,0.08750055]
[1760136608099,0.02283351,114100.0,114070.0,0.08750055]
[1760136608301,0.09652,114090.0,114070.0,0.08750055]
[1760136608661,0.02283351,114100.0,114070.0,0.08750055]
[1760136608662,0.11935351,114080.0,114070.0,8.773e-05]
[1760136608835,0.02283351,114080.0,114070.0,8.773e-05]
[1760136609054,0.02283351,114080.0,114070.0,0.08758828]
[1760136609217,0.02283351,114080.0,114070.0,8.773e-05]
[1760136609961,0.02126865,114110.0,114070.0,0.08758828]
[1760136610110,0.04731442,114150.0,114100.0,0.08750055]
[1760136610315,0.02251629,114140.0,114100.0,0.08750055]
[1760136610515,0.10835775,114130.0,114070.0,8.773e-05]
[1760136610717,0.0220567,114120.0,114080.0,0.08750055]
[1760136610926,0.0220567,114120.0,114090.0,0.08750055]
[1760136611123,0.24537504,114230.0,114110.0,0.08750055]
[1760136611342,0.24537504,114230.0,114120.0,0.08750055]
[1760136611343,0.02021874,114170.0,114120.0,0.08750055]
[1760136611630,0.02021874,114170.0,114130.0,0.09098]
[1760136611838,0.08750055,114180.0,114140.0,0.08750055]
[1760136612036,0.04097,114190.0,114030.0,0.04999]
[1760136612037,0.13276055,114150.0,114030.0,0.04999]
[1760136612233,0.08750055,114130.0,114050.0,0.08750055]
[1760136612447,0.04752,114060.0,114050.0,0.08750055]
[1760136612686,0.21923579,114060.0,114030.0,0.0005066]
[1760136612923,0.27700414,114050.0,114030.0,0.0005066]
[1760136613125,0.27700414,114050.0,114030.0,2.6e-07]
[1760136613302,0.08750055,114040.0,114030.0,2.6e-07]
[1760136613729,0.16511679,114040.0,114030.0,2.6e-07]
[1760136614146,0.05963566,114030.0,113950.0,0.14097]
[1760136614352,0.14830326,114020.0,113960.0,0.06255176]
[1760136614490,0.0266365,114010.0,113950.0,0.08750055]
[1760136614692,0.08750055,114000.0,113950.0,0.08750055]
[1760136615034,0.08750055,114000.0,113890.0,0.05039]
[1760136615035,0.16102439,113990.0,113900.0,0.14097]
[1760136615239,0.08750055,113980.0,113920.0,0.08750055]
[1760136615541,0.05770248,113970.0,113920.0,0.08750055]
[1760136615692,0.05622302,114020.0,113920.0,0.08750055]
[1760136616039,0.08473895,114010.0,113930.0,0.14097]
[1760136616237,0.08524523,114010.0,113940.0,0.08750055]
[1760136616398,0.10755686,114010.0,113940.0,0.08750055]
[1760136616600,0.02231163,114000.0,113940.0,0.08750055]
[1760136616810,0.02255201,114000.0,113950.0,0.08750055]
[1760136617012,0.02255201,114000.0,113960.0,0.09098]
[1760136617374,0.02255201,114000.0,113970.0,0.17182548]
[1760136617510,0.00050628,114010.0,113970.0,0.17182548]
[1760136617712,0.00050628,114010.0,113990.0,0.08750055]
[1760136617912,0.04752,114120.0,114000.0,0.08750055]
[1760136618114,0.06409903,114070.0,114020.0,0.08750055]
[1760136618316,0.08609795,114070.0,114020.0,0.08750055]
[1760136618551,0.08609795,114070.0,114020.0,0.17848055]
[1760136619410,0.0639068,114050.0,114000.0,8.773e-05]
[1760136619734,0.0381568,114040.0,114000.0,8.773e-05]
[1760136619944,0.04752,114120.0,114010.0,0.08750055]
[1760136620181,0.0639068,114070.0,114010.0,0.08750055]
[1760136620861,0.01908193,114060.0,114010.0,0.17848055]
[1760136621039,0.01973578,114090.0,114050.0,0.08750055]
[1760136621245,0.06614476,114120.0,114050.0,0.08750055]
[1760136621569,0.10519222,114110.0,114050.0,0.08750055]
[1760136621772,0.10637079,114110.0,114050.0,0.08750055]
[1760136621953,0.08683729,114110.0,114050.0,0.08750055]
[1760136622179,0.02382695,114110.0,114070.0,0.08750055]
[1760136622309,0.04752,114120.0,114070.0,0.08750055]
[1760136622504,0.08551683,114110.0,114070.0,0.08750055]
[1760136622712,0.02437682,114100.0,114080.0,0.02]
[1760136623130,0.02437682,114100.0,114080.0,0.01487]
[1760136623534,0.0871951,114100.0,114080.0,0.01487]
[1760136623815,0.06281828,114090.0,114080.0,0.01487]
[1760136624014,0.1172153,114090.0,114080.0,0.01487]
[1760136624412,0.1172153,114090.0,114050.0,8.773e-05]
[1760136624668,0.08797631,114080.0,114050.0,8.773e-05]
[1760136625429,0.08528297,114070.0,114050.0,8.773e-05]
[1760136625637,0.10270888,114060.0,113960.0,0.09098]
[1760136625881,0.06589344,114020.0,113960.0,0.08800683]
[1760136626218,0.12508087,114010.0,113960.0,0.00050628]
[1760136626363,0.12508087,114010.0,113930.0,0.13346828]
[1760136626568,0.1446097,114010.0,113940.0,0.08750055]
[1760136626767,0.12558721,114010.0,113940.0,0.08750055]
[1760136626932,0.12558721,114010.0,113950.0,0.17848055]
[1760136627135,0.05892429,114010.0,113950.0,0.17848055]
[1760136627331,0.06704775,114000.0,113930.0,0.04248828]
[1760136627552,0.04796003,113990.0,113930.0,0.08750055]
[1760136627781,0.06762513,113970.0,113890.0,0.09138]
[1760136628016,0.02350139,113960.0,113900.0,0.08750055]
[1760136628227,0.09247433,113960.0,113900.0,0.08750055]
[1760136628659,0.02350139,113960.0,113900.0,0.08750055]
[1760136628865,0.0240071,113960.0,113900.0,0.08750055]
[1760136629104,0.0240071,113960.0,113900.0,0.080651]
[1760136629827,0.0240071,113960.0,113930.0,0.08750055]
[1760136630124,0.01810951,114050.0,113950.0,0.13749055]
[1760136630332,0.01810951,114050.0,113990.0,0.08750055]
[1760136630629,0.07235837,114040.0,113990.0,0.08750055]
[1760136630833,0.01810951,114030.0,113990.0,0.08750055]
[1760136631492,0.01810951,114030.0,113990.0,0.17862888]
[1760136632131,0.01810951,114030.0,114000.0,0.09098]
[1760136632294,0.01810951,114030.0,114010.0,0.08750055]
[1760136633298,0.013233,114010.0,113990.0,0.00014833]
[1760136633504,0.013233,114010.0,114000.0,0.18241055]
[1760136633977,0.03537042,114010.0,114000.0,0.18241055]
[1760136634259,0.013233,114010.0,114000.0,0.18241055]
[1760136634419,0.02014681,114060.0,114020.0,0.01754074]
[1760136634618,0.09664681,114110.0,114030.0,0.22771055]
[1760136634863,0.07043622,114090.0,114030.0,0.22771055]
[1760136635074,0.02014681,114080.0,114030.0,0.08750055]
[1760136635210,0.33901634,114070.0,114000.0,0.09491]
[1760136635468,0.1064928,114060.0,114000.0,0.18241055]
[1760136635660,0.11020635,114060.0,114000.0,0.08750055]
[1760136635866,0.11020635,114060.0,114000.0,0.08764888]
[1760136636028,0.01676702,114050.0,114000.0,0.00014833]
[1760136636367,0.11342421,114040.0,114000.0,0.00014833]
[1760136636565,0.11342421,114040.0,113920.0,0.14021]
[1760136636566,0.08558837,114010.0,113920.0,0.14021]
[1760136636888,0.13420555,114000.0,113930.0,0.08750055]
[1760136637072,0.07447468,113980.0,113920.0,0.00050571]